[Event "*** Titled Tuesday Blitz"]
[Site "Chess.com"]
[Date "2020.11.03"]
[Round "9"]
[White "juancruzarias"]
[Black "davigator"]
[Result "1/2-1/2"]
[WhiteElo "2546"]
[BlackElo "2394"]
[TimeControl "180+1"]
[EndTime "11:49:44 PST"]
[Termination "Game drawn by agreement"]

1. e4 {[%clk 0:03:00.9]} 1... c5 {[%clk 0:02:58.2]} 2. Nc3 {[%clk 0:03:01.2]}
2... Nc6 {[%clk 0:02:57.9]} 3. g3 {[%clk 0:03:01.8]} 3... g6 {[%clk 0:02:57.8]}
4. Bg2 {[%clk 0:03:02.4]} 4... Bg7 {[%clk 0:02:58.2]} 5. d3 {[%clk 0:03:03]}
5... d6 {[%clk 0:02:58.6]} 6. f4 {[%clk 0:03:02.9]} 6... e6 {[%clk 0:02:58.1]}
7. Nf3 {[%clk 0:03:03.1]} 7... Nge7 {[%clk 0:02:58.7]} 8. O-O {[%clk 0:03:03.6]}
8... O-O {[%clk 0:02:59.3]} 9. Bd2 {[%clk 0:03:04.2]} 9... Bd7 {[%clk
0:02:56.5]} 10. Rb1 {[%clk 0:03:03.5]} 10... Rb8 {[%clk 0:02:55.4]} 11. a3
{[%clk 0:03:02.6]} 11... a6 {[%clk 0:02:54]} 12. h3 {[%clk 0:03:01.8]} 12... Qc7
{[%clk 0:02:52.2]} 13. g4 {[%clk 0:03:02.1]} 13... f5 {[%clk 0:02:52.2]} 14. Ne2
{[%clk 0:03:01.8]} 14... Rbe8 {[%clk 0:02:47.2]} 15. Ng3 {[%clk 0:03:00.9]}
15... b5 {[%clk 0:02:43.6]} 16. c3 {[%clk 0:02:56.8]} 16... a5 {[%clk
0:02:42.3]} 17. Kh1 {[%clk 0:02:50.5]} 17... b4 {[%clk 0:02:41]} 18. axb4 {[%clk
0:02:50.2]} 18... axb4 {[%clk 0:02:41.1]} 19. gxf5 {[%clk 0:02:45]} 19... gxf5
{[%clk 0:02:39.1]} 20. Nh5 {[%clk 0:02:43.5]} 20... Rf7 {[%clk 0:02:37.5]} 21.
cxb4 {[%clk 0:02:38.8]} 21... Nxb4 {[%clk 0:02:36.1]} 22. Nxg7 {[%clk
0:02:38.5]} 22... Rxg7 {[%clk 0:02:35.6]} 23. Bc3 {[%clk 0:02:38.7]} 23... Rg6
{[%clk 0:02:33.3]} 24. Nh4 {[%clk 0:02:29.3]} 24... Rh6 {[%clk 0:02:32.9]} 25.
Nf3 {[%clk 0:02:11.1]} 25... Ng6 {[%clk 0:02:30.6]} 26. Qd2 {[%clk 0:02:04.3]}
26... Nc6 {[%clk 0:02:29.1]} 27. Rg1 {[%clk 0:02:01.4]} 27... Bc8 {[%clk
0:02:12.2]} 28. Rbe1 {[%clk 0:02:00.7]} 28... Rf8 {[%clk 0:01:56.5]} 29. Ng5
{[%clk 0:01:51.7]} 29... Nd4 {[%clk 0:01:50]} 30. Ref1 {[%clk 0:01:39.9]} 30...
Qe7 {[%clk 0:01:44.4]} 31. b4 {[%clk 0:01:29.4]} 31... Bd7 {[%clk 0:01:36.1]}
32. bxc5 {[%clk 0:01:29.2]} 32... dxc5 {[%clk 0:01:36]} 33. Qe3 {[%clk
0:01:24.6]} 33... Qd6 {[%clk 0:01:33.5]} 34. e5 {[%clk 0:01:21.1]} 34... Qb6
{[%clk 0:01:32.9]} 35. Rb1 {[%clk 0:01:19]} 35... Qa7 {[%clk 0:01:32.4]} 36. Rb7
{[%clk 0:01:18]} 36... Qa4 {[%clk 0:01:33]} 37. Ra1 {[%clk 0:01:09.6]} 37... Qc2
{[%clk 0:01:03.7]} 38. Qd2 {[%clk 0:01:09.7]} 38... Qxd2 {[%clk 0:01:01.4]} 39.
Bxd2 {[%clk 0:01:10.6]} 39... Bc8 {[%clk 0:01:00.7]} 40. Rc7 {[%clk 0:01:08.1]}
40... Nb3 {[%clk 0:00:57.5]} 41. Ra2 {[%clk 0:01:08.1]} 41... Nxd2 {[%clk
0:00:56.5]} 42. Rxd2 {[%clk 0:01:08.6]} 42... Rh4 {[%clk 0:00:53.6]} 43. Rb2
{[%clk 0:01:03.9]} 43... h6 {[%clk 0:00:51.2]} 44. Nf3 {[%clk 0:01:01.5]} 44...
Rxf4 {[%clk 0:00:51.8]} 45. Rb8 {[%clk 0:01:01.7]} 45... Ba6 {[%clk 0:00:50]}
46. Rb6 {[%clk 0:00:53.6]} 46... Bc8 {[%clk 0:00:40.2]} 47. Rbc6 {[%clk
0:00:50.3]} 47... Rxf3 {[%clk 0:00:39.9]} 48. Bxf3 {[%clk 0:00:27]} 48... Nxe5
{[%clk 0:00:39.9]} 49. Rxc8 {[%clk 0:00:27]} 49... Nxc6 {[%clk 0:00:39.8]} 50.
Rxf8+ {[%clk 0:00:27]} 50... Kxf8 {[%clk 0:00:39.5]} 51. Bxc6 {[%clk 0:00:27.9]}
51... Ke7 {[%clk 0:00:40.2]} 52. Kg2 {[%clk 0:00:26.3]} 52... Kd6 {[%clk
0:00:40.8]} 53. Bb7 {[%clk 0:00:24.6]} 53... Ke5 {[%clk 0:00:41]} 54. Kf3 {[%clk
0:00:24.6]} 54... Kd4 {[%clk 0:00:41.6]} 55. Ba6 {[%clk 0:00:23.6]} 55... e5
{[%clk 0:00:42.1]} 56. Ke2 {[%clk 0:00:20.3]} 56... e4 {[%clk 0:00:41.9]} 57. h4
{[%clk 0:00:19.5]} 57... exd3+ {[%clk 0:00:33.7]} 58. Bxd3 {[%clk 0:00:20.4]}
58... f4 {[%clk 0:00:34.3]} 59. Ba6 {[%clk 0:00:20]} 59... c4 {[%clk 0:00:34.5]}
60. Bxc4 {[%clk 0:00:12.5]} 60... Kxc4 {[%clk 0:00:33.8]} 61. Kf3 {[%clk
0:00:13.4]} 61... Kd5 {[%clk 0:00:34.3]} 62. Kxf4 {[%clk 0:00:14.3]} 62... Ke6
{[%clk 0:00:34.4]} 63. Kg4 {[%clk 0:00:14.6]} 63... Kf6 {[%clk 0:00:34.5]} 64.
Kh5 {[%clk 0:00:15.5]} 64... Kg7 {[%clk 0:00:34.9]} 65. Kg4 {[%clk 0:00:14.5]}
1/2-1/2

[Event "*** Titled Tuesday Blitz"]
[Site "Chess.com"]
[Date "2020.11.03"]
[Round "9"]
[White "barriochess"]
[Black "VladaSviridova"]
[Result "1-0"]
[WhiteElo "2370"]
[BlackElo "2274"]
[TimeControl "180+1"]
[EndTime "11:49:44 PST"]
[Termination "barriochess won on time"]

1. d4 {[%clk 0:03:00.9]} 1... d5 {[%clk 0:02:59.7]} 2. c4 {[%clk 0:03:00.7]}
2... c6 {[%clk 0:02:59.2]} 3. Nf3 {[%clk 0:02:59.4]} 3... Nf6 {[%clk 0:02:59.6]}
4. Nc3 {[%clk 0:02:58.9]} 4... dxc4 {[%clk 0:02:58.9]} 5. a4 {[%clk 0:02:57.9]}
5... Bf5 {[%clk 0:02:58.8]} 6. Ne5 {[%clk 0:02:56.7]} 6... Nbd7 {[%clk
0:02:58.7]} 7. Nxc4 {[%clk 0:02:56.3]} 7... Qc7 {[%clk 0:02:59.3]} 8. g3 {[%clk
0:02:55.5]} 8... e5 {[%clk 0:02:59.2]} 9. dxe5 {[%clk 0:02:54.8]} 9... Nxe5
{[%clk 0:02:59.4]} 10. Bf4 {[%clk 0:02:54.8]} 10... Nfd7 {[%clk 0:02:59.7]} 11.
Nxe5 {[%clk 0:02:44.9]} 11... Nxe5 {[%clk 0:02:59.1]} 12. Bg2 {[%clk 0:02:45]}
12... Be7 {[%clk 0:02:48.5]} 13. O-O {[%clk 0:02:43.8]} 13... O-O {[%clk
0:02:47.9]} 14. Qc1 {[%clk 0:02:23.9]} 14... f6 {[%clk 0:02:45.2]} 15. Nd5
{[%clk 0:02:22.1]} 15... Qd6 {[%clk 0:02:36.7]} 16. Nxe7+ {[%clk 0:02:17.6]}
16... Qxe7 {[%clk 0:02:36.5]} 17. Qe3 {[%clk 0:02:13.7]} 17... Rfe8 {[%clk
0:02:35.2]} 18. h4 {[%clk 0:02:11.6]} 18... Nc4 {[%clk 0:02:11]} 19. Qc3 {[%clk
0:02:08.3]} 19... Qxe2 {[%clk 0:01:57]} 20. b3 {[%clk 0:01:41.8]} 20... Ne5
{[%clk 0:01:32.2]} 21. Rfe1 {[%clk 0:01:32.4]} 21... Qc2 {[%clk 0:01:23.8]} 22.
Rec1 {[%clk 0:01:22.7]} 22... Qxc3 {[%clk 0:01:19.9]} 23. Rxc3 {[%clk
0:01:23.6]} 23... Nd3 {[%clk 0:01:17]} 24. Be3 {[%clk 0:01:20.6]} 24... a5
{[%clk 0:01:05]} 25. Rd1 {[%clk 0:01:17.4]} 25... Nb4 {[%clk 0:01:02.8]} 26. Bc5
{[%clk 0:01:07.9]} 26... Rad8 {[%clk 0:00:18.4]} 27. Rxd8 {[%clk 0:01:01.4]}
27... Rxd8 {[%clk 0:00:19.3]} 28. Bb6 {[%clk 0:01:01]} 28... Rd1+ {[%clk
0:00:16.8]} 29. Kh2 {[%clk 0:01:00.3]} 29... Nd3 {[%clk 0:00:16]} 30. Bf3 {[%clk
0:00:51.7]} 30... Rf1 {[%clk 0:00:14.5]} 31. Kg2 {[%clk 0:00:51.5]} 31... Rb1
{[%clk 0:00:13.9]} 32. Kh2 {[%clk 0:00:33.6]} 32... Rb2 {[%clk 0:00:13.2]} 33.
g4 {[%clk 0:00:19.5]} 33... Nxf2 {[%clk 0:00:10]} 34. Bxf2 {[%clk 0:00:14]}
34... Rxf2+ {[%clk 0:00:09.3]} 35. Kg3 {[%clk 0:00:14.2]} 35... Rd2 {[%clk
0:00:08.6]} 36. gxf5 {[%clk 0:00:13.9]} 36... g6 {[%clk 0:00:08.6]} 37. fxg6
{[%clk 0:00:13.6]} 37... hxg6 {[%clk 0:00:09.5]} 38. h5 {[%clk 0:00:12.8]} 38...
Kg7 {[%clk 0:00:07.5]} 39. hxg6 {[%clk 0:00:12.6]} 39... Kxg6 {[%clk 0:00:07.8]}
40. Kf4 {[%clk 0:00:10.8]} 40... Rd4+ {[%clk 0:00:06.8]} 41. Ke3 {[%clk
0:00:10.9]} 41... Rh4 {[%clk 0:00:06.5]} 42. Rc5 {[%clk 0:00:09.5]} 42... Rb4
{[%clk 0:00:06.2]} 43. Bd1 {[%clk 0:00:09.5]} 43... f5 {[%clk 0:00:04.6]} 44.
Bc2 {[%clk 0:00:09.5]} 44... Kf6 {[%clk 0:00:03.8]} 45. Rxf5+ {[%clk 0:00:09.2]}
45... Ke6 {[%clk 0:00:04]} 46. Rxa5 {[%clk 0:00:10]} 46... b6 {[%clk 0:00:02.8]}
47. Rh5 {[%clk 0:00:08.9]} 47... Kd6 {[%clk 0:00:02.2]} 48. Kd3 {[%clk
0:00:09.1]} 48... c5 {[%clk 0:00:01.6]} 49. Kc3 {[%clk 0:00:08.6]} 1-0

[Event "*** Titled Tuesday Blitz"]
[Site "Chess.com"]
[Date "2020.11.03"]
[Round "9"]
[White "ChessWarrior7197"]
[Black "Onischuk_V"]
[Result "0-1"]
[WhiteElo "3004"]
[BlackElo "2886"]
[TimeControl "180+1"]
[EndTime "11:49:46 PST"]
[Termination "Onischuk_V won by resignation"]

1. e4 {[%clk 0:03:00.9]} 1... d6 {[%clk 0:02:59.6]} 2. d4 {[%clk 0:03:00.9]}
2... Nf6 {[%clk 0:03:00.2]} 3. Nc3 {[%clk 0:03:00.4]} 3... g6 {[%clk 0:03:00.9]}
4. f4 {[%clk 0:03:00.8]} 4... Bg7 {[%clk 0:03:01.4]} 5. Nf3 {[%clk 0:03:00.3]}
5... O-O {[%clk 0:03:02]} 6. e5 {[%clk 0:02:59.6]} 6... dxe5 {[%clk 0:03:02.2]}
7. fxe5 {[%clk 0:02:58.8]} 7... Nd5 {[%clk 0:03:02.4]} 8. Bc4 {[%clk 0:02:54.3]}
8... Nxc3 {[%clk 0:03:02.3]} 9. bxc3 {[%clk 0:02:54.1]} 9... c5 {[%clk
0:03:02.9]} 10. O-O {[%clk 0:02:49.3]} 10... Bg4 {[%clk 0:03:02.7]} 11. h3
{[%clk 0:02:40.9]} 11... Bxf3 {[%clk 0:03:02.3]} 12. Qxf3 {[%clk 0:02:41.8]}
12... Nc6 {[%clk 0:03:02.7]} 13. Rd1 {[%clk 0:01:35.2]} 13... Rc8 {[%clk
0:02:12.4]} 14. Bb2 {[%clk 0:01:19]} 14... Qb6 {[%clk 0:01:56.9]} 15. Bb3 {[%clk
0:00:31.8]} 15... c4 {[%clk 0:01:52.5]} 16. Kh1 {[%clk 0:00:29.9]} 16... cxb3
{[%clk 0:01:50.6]} 17. axb3 {[%clk 0:00:30.2]} 17... e6 {[%clk 0:01:49.9]} 18.
Ba3 {[%clk 0:00:28.9]} 18... Rfd8 {[%clk 0:01:48]} 19. Bd6 {[%clk 0:00:23.9]}
19... Rd7 {[%clk 0:01:29.1]} 20. b4 {[%clk 0:00:20.3]} 20... a6 {[%clk
0:01:21.7]} 21. c4 {[%clk 0:00:15.4]} 21... Nxd4 {[%clk 0:01:05.9]} 22. Qf2
{[%clk 0:00:15.8]} 22... Rxc4 {[%clk 0:01:04.6]} 23. Bc5 {[%clk 0:00:16.2]}
23... Rxc5 {[%clk 0:00:49]} 24. bxc5 {[%clk 0:00:17.1]} 24... Qxc5 {[%clk
0:00:49.1]} 25. c3 {[%clk 0:00:16.4]} 25... Qxc3 {[%clk 0:00:43.9]} 26. Rac1
{[%clk 0:00:15.7]} 26... Qb4 {[%clk 0:00:43.8]} 27. Rc8+ {[%clk 0:00:15.4]}
27... Bf8 {[%clk 0:00:43.5]} 28. Qf6 {[%clk 0:00:14.8]} 28... a5 {[%clk
0:00:29.4]} 29. Ra8 {[%clk 0:00:14.6]} 29... a4 {[%clk 0:00:28]} 30. Rf1 {[%clk
0:00:13.6]} 30... Nf5 {[%clk 0:00:25.3]} 31. Rc1 {[%clk 0:00:13.2]} 31... h5
{[%clk 0:00:16.9]} 32. Qg5 {[%clk 0:00:12]} 32... Kh7 {[%clk 0:00:16]} 33. Rf1
{[%clk 0:00:04.9]} 33... Bh6 {[%clk 0:00:15.7]} 34. Qf6 {[%clk 0:00:05.3]} 34...
Bg7 {[%clk 0:00:15.7]} 35. Qg5 {[%clk 0:00:05.2]} 35... Bxe5 {[%clk 0:00:15.9]}
36. Rc1 {[%clk 0:00:03.3]} 36... Ng3+ {[%clk 0:00:15.5]} 37. Kg1 {[%clk
0:00:03.4]} 37... Ne2+ {[%clk 0:00:15.3]} 38. Kh1 {[%clk 0:00:03.3]} 38... Qf4
{[%clk 0:00:13.6]} 39. Qxf4 {[%clk 0:00:02.5]} 39... Bxf4 {[%clk 0:00:13.5]} 40.
Re1 {[%clk 0:00:02.3]} 40... Ng3+ {[%clk 0:00:13.4]} 41. Kg1 {[%clk 0:00:03.2]}
41... b5 {[%clk 0:00:13.5]} 42. Ra6 {[%clk 0:00:02.8]} 42... h4 {[%clk 0:00:13]}
43. Kf2 {[%clk 0:00:03.7]} 43... Rd2+ {[%clk 0:00:12.7]} 44. Kf3 {[%clk
0:00:04.6]} 44... g5 {[%clk 0:00:13.1]} 45. Rc1 {[%clk 0:00:04.2]} 45... Kg6
{[%clk 0:00:12.6]} 46. Rc5 {[%clk 0:00:03.3]} 46... Rd3+ {[%clk 0:00:12.7]} 47.
Kg4 {[%clk 0:00:01.8]} 47... f5+ {[%clk 0:00:12.3]} 48. Rxf5 {[%clk 0:00:02.7]}
48... Nxf5 {[%clk 0:00:12.4]} 49. Rxe6+ {[%clk 0:00:03.6]} 49... Kf7 {[%clk
0:00:13]} 50. Kxf5 {[%clk 0:00:04.5]} 50... Rd5+ {[%clk 0:00:13.2]} 0-1

[Event "*** Titled Tuesday Blitz"]
[Site "Chess.com"]
[Date "2020.11.03"]
[Round "9"]
[White "tk22h"]
[Black "kidagent"]
[Result "0-1"]
[WhiteElo "2360"]
[BlackElo "2301"]
[TimeControl "180+1"]
[EndTime "11:49:46 PST"]
[Termination "kidagent won on time"]

1. c4 {[%clk 0:03:00.9]} 1... c6 {[%clk 0:02:59.8]} 2. e4 {[%clk 0:03:00.3]}
2... e5 {[%clk 0:02:59.9]} 3. Nf3 {[%clk 0:02:59.3]} 3... d6 {[%clk 0:03:00.4]}
4. d4 {[%clk 0:02:58.5]} 4... Nd7 {[%clk 0:03:00.4]} 5. Nc3 {[%clk 0:02:57.2]}
5... Ngf6 {[%clk 0:02:59.9]} 6. Be2 {[%clk 0:02:56.4]} 6... g6 {[%clk 0:03:00]}
7. O-O {[%clk 0:02:55.4]} 7... Bg7 {[%clk 0:03:00.2]} 8. Be3 {[%clk 0:02:48.6]}
8... O-O {[%clk 0:02:58.6]} 9. d5 {[%clk 0:02:45.3]} 9... c5 {[%clk 0:02:56.9]}
10. Ne1 {[%clk 0:02:42.4]} 10... Ne8 {[%clk 0:02:55.3]} 11. Nd3 {[%clk
0:02:41.3]} 11... f5 {[%clk 0:02:53]} 12. f4 {[%clk 0:02:41.3]} 12... exf4
{[%clk 0:02:33.1]} 13. Nxf4 {[%clk 0:02:38.2]} 13... Ne5 {[%clk 0:02:31.2]} 14.
exf5 {[%clk 0:02:36.3]} 14... Bxf5 {[%clk 0:02:28.6]} 15. g4 {[%clk 0:02:35.7]}
15... Bd7 {[%clk 0:02:26.6]} 16. Ne6 {[%clk 0:02:35.6]} 16... Bxe6 {[%clk
0:02:25.2]} 17. dxe6 {[%clk 0:02:36.5]} 17... Nc7 {[%clk 0:02:14.6]} 18. Rxf8+
{[%clk 0:02:33]} 18... Qxf8 {[%clk 0:02:11]} 19. e7 {[%clk 0:02:18.4]} 19...
Qxe7 {[%clk 0:02:09.3]} 20. Nd5 {[%clk 0:02:18.2]} 20... Nxd5 {[%clk 0:02:02.2]}
21. Qxd5+ {[%clk 0:02:16.8]} 21... Kh8 {[%clk 0:02:02.3]} 22. Re1 {[%clk
0:02:09]} 22... Re8 {[%clk 0:01:59.2]} 23. Bf2 {[%clk 0:01:57]} 23... b6 {[%clk
0:01:51.3]} 24. Bd1 {[%clk 0:01:51.1]} 24... Qf6 {[%clk 0:01:24]} 25. Bg3 {[%clk
0:01:40.3]} 25... Rf8 {[%clk 0:01:01.6]} 26. b3 {[%clk 0:01:31.2]} 26... Nf3+
{[%clk 0:00:37]} 27. Bxf3 {[%clk 0:01:30.1]} 27... Qxf3 {[%clk 0:00:37.5]} 28.
Qxf3 {[%clk 0:01:30.1]} 28... Rxf3 {[%clk 0:00:37.1]} 29. Bxd6 {[%clk
0:01:24.6]} 29... Bd4+ {[%clk 0:00:33.8]} 30. Kg2 {[%clk 0:01:02.9]} 30... Rf2+
{[%clk 0:00:33.2]} 31. Kg3 {[%clk 0:01:03.2]} 31... Rxa2 {[%clk 0:00:33.4]} 32.
Re7 {[%clk 0:01:00.1]} 32... Ra3 {[%clk 0:00:25.9]} 33. Bf4 {[%clk 0:00:57.6]}
33... Rxb3+ {[%clk 0:00:25.4]} 34. Kg2 {[%clk 0:00:57.8]} 34... h5 {[%clk
0:00:15.7]} 35. gxh5 {[%clk 0:00:54.7]} 35... gxh5 {[%clk 0:00:16]} 36. Rxa7
{[%clk 0:00:53.2]} 36... Rc3 {[%clk 0:00:16.1]} 37. Rb7 {[%clk 0:00:34.5]} 37...
Rxc4 {[%clk 0:00:15.7]} 38. Rxb6 {[%clk 0:00:34.3]} 38... Rc2+ {[%clk 0:00:16]}
39. Kf3 {[%clk 0:00:33.2]} 39... Kg8 {[%clk 0:00:12.9]} 40. Ke4 {[%clk
0:00:20.1]} 40... Kf7 {[%clk 0:00:11.5]} 41. Kf5 {[%clk 0:00:19.7]} 41... c4
{[%clk 0:00:08.4]} 42. Rb7+ {[%clk 0:00:17.9]} 42... Ke8 {[%clk 0:00:08.8]} 43.
Ke6 {[%clk 0:00:16.5]} 43... Re2+ {[%clk 0:00:08.2]} 44. Kd5 {[%clk 0:00:15.6]}
44... Bf6 {[%clk 0:00:06.3]} 45. Kxc4 {[%clk 0:00:15.1]} 45... Re4+ {[%clk
0:00:06]} 46. Kd5 {[%clk 0:00:15.3]} 46... Rxf4 {[%clk 0:00:06.5]} 47. Ke6
{[%clk 0:00:15.3]} 47... Rf2 {[%clk 0:00:07]} 48. Rb8+ {[%clk 0:00:13.9]} 48...
Bd8 {[%clk 0:00:06.9]} 49. h4 {[%clk 0:00:12.9]} 49... Rf6+ {[%clk 0:00:06]} 0-1

[Event "*** Titled Tuesday Blitz"]
[Site "Chess.com"]
[Date "2020.11.03"]
[Round "9"]
[White "marabu44"]
[Black "Agoking701"]
[Result "1/2-1/2"]
[WhiteElo "2256"]
[BlackElo "2358"]
[TimeControl "180+1"]
[EndTime "11:49:49 PST"]
[Termination "Game drawn by stalemate"]

1. Nf3 {[%clk 0:03:00.9]} 1... g6 {[%clk 0:02:59.4]} 2. d4 {[%clk 0:03:00.1]}
2... Bg7 {[%clk 0:03:00.3]} 3. c4 {[%clk 0:02:58.7]} 3... d6 {[%clk 0:02:56.4]}
4. Nc3 {[%clk 0:02:57.8]} 4... Nc6 {[%clk 0:02:54.2]} 5. d5 {[%clk 0:02:52.3]}
5... Nb8 {[%clk 0:02:50.2]} 6. g3 {[%clk 0:02:45.2]} 6... e5 {[%clk 0:02:48.2]}
7. e4 {[%clk 0:02:40.2]} 7... Ne7 {[%clk 0:02:42.3]} 8. h4 {[%clk 0:02:36.3]}
8... h5 {[%clk 0:02:38.6]} 9. Ng5 {[%clk 0:02:34.3]} 9... a5 {[%clk 0:02:26.8]}
10. Be3 {[%clk 0:02:28.4]} 10... Na6 {[%clk 0:02:25.9]} 11. Qa4+ {[%clk
0:02:12]} 11... Bd7 {[%clk 0:02:03.7]} 12. Qc2 {[%clk 0:02:09.9]} 12... Nc5
{[%clk 0:02:00.8]} 13. Bg2 {[%clk 0:02:08.2]} 13... f6 {[%clk 0:01:56]} 14. Nf3
{[%clk 0:02:06.8]} 14... f5 {[%clk 0:01:53.9]} 15. Bxc5 {[%clk 0:02:05.2]} 15...
dxc5 {[%clk 0:01:52.8]} 16. Ng5 {[%clk 0:02:04.8]} 16... Nc8 {[%clk 0:01:41.3]}
17. O-O {[%clk 0:01:47.3]} 17... Bf6 {[%clk 0:01:25.8]} 18. Ne6 {[%clk
0:01:39.7]} 18... Bxe6 {[%clk 0:01:22.6]} 19. dxe6 {[%clk 0:01:40.4]} 19... f4
{[%clk 0:01:10]} 20. gxf4 {[%clk 0:01:32.4]} 20... Nd6 {[%clk 0:01:04.2]} 21.
Nd5 {[%clk 0:01:28.7]} 21... c6 {[%clk 0:01:00.4]} 22. e7 {[%clk 0:01:12.7]}
22... Bxe7 {[%clk 0:00:55.7]} 23. fxe5 {[%clk 0:01:10.3]} 23... Nf7 {[%clk
0:00:50.3]} 24. f4 {[%clk 0:00:58.6]} 24... cxd5 {[%clk 0:00:43.3]} 25. exd5
{[%clk 0:00:57.7]} 25... Bxh4 {[%clk 0:00:37.4]} 26. Qxg6 {[%clk 0:00:54.1]}
26... Rh6 {[%clk 0:00:27.2]} 27. Qg7 {[%clk 0:00:49.9]} 27... Qe7 {[%clk
0:00:16.4]} 28. d6 {[%clk 0:00:40.3]} 28... Qf8 {[%clk 0:00:15.3]} 29. Qxf8+
{[%clk 0:00:21.5]} 29... Kxf8 {[%clk 0:00:16.2]} 30. Rad1 {[%clk 0:00:18.2]}
30... Rd8 {[%clk 0:00:14.8]} 31. Bxb7 {[%clk 0:00:16.4]} 31... Rb8 {[%clk
0:00:12.6]} 32. Bd5 {[%clk 0:00:13.1]} 32... Rxb2 {[%clk 0:00:10.3]} 33. Bxf7
{[%clk 0:00:12.7]} 33... Kxf7 {[%clk 0:00:10]} 34. f5 {[%clk 0:00:12.6]} 34...
Rh8 {[%clk 0:00:07.3]} 35. Kh1 {[%clk 0:00:09.1]} 35... Re8 {[%clk 0:00:05.6]}
36. e6+ {[%clk 0:00:08.5]} 36... Kf6 {[%clk 0:00:06.1]} 37. d7 {[%clk 0:00:08]}
37... Rd8 {[%clk 0:00:05.1]} 38. Rd6 {[%clk 0:00:05.8]} 38... Ke7 {[%clk
0:00:03.8]} 39. Rd5 {[%clk 0:00:05.4]} 39... Bf6 {[%clk 0:00:02.4]} 40. Rxc5
{[%clk 0:00:04.1]} 40... Rxa2 {[%clk 0:00:02.9]} 41. Rc8 {[%clk 0:00:03.3]}
41... Rc2 {[%clk 0:00:02.2]} 42. c5 {[%clk 0:00:02.2]} 42... a4 {[%clk
0:00:02.5]} 43. c6 {[%clk 0:00:02.3]} 43... a3 {[%clk 0:00:03.1]} 44. c7 {[%clk
0:00:02.2]} 44... Rxc7 {[%clk 0:00:03.6]} 45. Rxc7 {[%clk 0:00:02.3]} 45... a2
{[%clk 0:00:04.5]} 46. Ra7 {[%clk 0:00:01.7]} 46... a1=Q {[%clk 0:00:04.4]} 47.
Raxa1 {[%clk 0:00:01.4]} 47... Bxa1 {[%clk 0:00:05.1]} 48. Rxa1 {[%clk
0:00:01.7]} 48... Kf6 {[%clk 0:00:05.8]} 49. Rf1 {[%clk 0:00:02]} 49... Rg8
{[%clk 0:00:04.5]} 50. Kh2 {[%clk 0:00:02.3]} 50... Kg5 {[%clk 0:00:02.9]} 51.
Rg1+ {[%clk 0:00:01.8]} 51... Kh4 {[%clk 0:00:01.7]} 52. Rxg8 {[%clk 0:00:02.5]}
1/2-1/2

[Event "*** Titled Tuesday Blitz"]
[Site "Chess.com"]
[Date "2020.11.03"]
[Round "9"]
[White "gumimis"]
[Black "Pertinhez76"]
[Result "1-0"]
[WhiteElo "2244"]
[BlackElo "2132"]
[TimeControl "180+1"]
[EndTime "11:49:49 PST"]
[Termination "gumimis won by checkmate"]

1. e4 {[%clk 0:02:59.7]} 1... e6 {[%clk 0:02:32.6]} 2. d4 {[%clk 0:02:57]} 2...
d5 {[%clk 0:02:31]} 3. Nc3 {[%clk 0:02:55.8]} 3... Nf6 {[%clk 0:02:26.3]} 4. e5
{[%clk 0:02:55.3]} 4... Nfd7 {[%clk 0:02:23.6]} 5. f4 {[%clk 0:02:54.7]} 5... c5
{[%clk 0:02:23.5]} 6. Nf3 {[%clk 0:02:55.2]} 6... Nc6 {[%clk 0:02:22.8]} 7. Be3
{[%clk 0:02:55.5]} 7... Be7 {[%clk 0:02:20.5]} 8. Qd2 {[%clk 0:02:53.7]} 8...
O-O {[%clk 0:02:14.4]} 9. Be2 {[%clk 0:02:37.7]} 9... a6 {[%clk 0:02:08.6]} 10.
O-O {[%clk 0:02:28.5]} 10... b5 {[%clk 0:02:08.1]} 11. Kh1 {[%clk 0:02:27.2]}
11... f5 {[%clk 0:02:05.5]} 12. exf6 {[%clk 0:02:26.1]} 12... Nxf6 {[%clk
0:02:04.9]} 13. dxc5 {[%clk 0:02:20.6]} 13... Na5 {[%clk 0:01:45.3]} 14. Ne5
{[%clk 0:02:08.5]} 14... Bb7 {[%clk 0:01:41.9]} 15. Bd4 {[%clk 0:01:59.5]} 15...
Rc8 {[%clk 0:01:39.4]} 16. Qe3 {[%clk 0:01:54.2]} 16... Nc4 {[%clk 0:01:31.1]}
17. Nxc4 {[%clk 0:01:51.5]} 17... dxc4 {[%clk 0:01:22.3]} 18. Qxe6+ {[%clk
0:01:51.3]} 18... Kh8 {[%clk 0:01:14.2]} 19. Rad1 {[%clk 0:01:50.2]} 19... Rc6
{[%clk 0:00:54]} 20. Qe3 {[%clk 0:01:29.1]} 20... Qe8 {[%clk 0:00:45.6]} 21. Bf3
{[%clk 0:01:25.3]} 21... Rc7 {[%clk 0:00:45.5]} 22. Bxb7 {[%clk 0:01:15.3]}
22... Rxb7 {[%clk 0:00:46.4]} 23. Rfe1 {[%clk 0:01:10.6]} 23... b4 {[%clk
0:00:33.7]} 24. Bxf6 {[%clk 0:00:57.9]} 24... gxf6 {[%clk 0:00:27.6]} 25. Nd5
{[%clk 0:00:55.1]} 25... Rf7 {[%clk 0:00:14.7]} 26. Qe6 {[%clk 0:00:48.2]} 26...
Qf8 {[%clk 0:00:12.3]} 27. c6 {[%clk 0:00:46.4]} 27... Ra7 {[%clk 0:00:12]} 28.
c7 {[%clk 0:00:45.4]} 28... Ra8 {[%clk 0:00:08.1]} 29. Nxe7 {[%clk 0:00:44]}
29... Re8 {[%clk 0:00:08.2]} 30. c8=Q {[%clk 0:00:40.1]} 30... Rxc8 {[%clk
0:00:07.2]} 31. Nxc8 {[%clk 0:00:39]} 31... Rg7 {[%clk 0:00:03.2]} 32. Qe8
{[%clk 0:00:32.5]} 32... Qxe8 {[%clk 0:00:03]} 33. Rxe8+ {[%clk 0:00:32.9]}
33... Rg8 {[%clk 0:00:03.9]} 34. Rxg8+ {[%clk 0:00:32.9]} 34... Kxg8 {[%clk
0:00:04.8]} 35. Rd4 {[%clk 0:00:32.6]} 35... Kf7 {[%clk 0:00:05.7]} 36. Rxc4
{[%clk 0:00:32.9]} 36... Ke6 {[%clk 0:00:06.6]} 37. Rxb4 {[%clk 0:00:33.3]}
37... Kd5 {[%clk 0:00:05.5]} 38. Ra4 {[%clk 0:00:33.3]} 38... Kc6 {[%clk
0:00:05.7]} 39. Ne7+ {[%clk 0:00:32.3]} 39... Kb7 {[%clk 0:00:06.6]} 40. Nd5
{[%clk 0:00:31.7]} 40... a5 {[%clk 0:00:06.4]} 41. Rxa5 {[%clk 0:00:31.8]} 41...
Kc6 {[%clk 0:00:07.3]} 42. Nxf6 {[%clk 0:00:31]} 42... h6 {[%clk 0:00:07.5]} 43.
Rh5 {[%clk 0:00:29.8]} 43... Kd6 {[%clk 0:00:08]} 44. Rxh6 {[%clk 0:00:30.2]}
44... Ke6 {[%clk 0:00:08.9]} 45. a4 {[%clk 0:00:29.3]} 45... Kf5 {[%clk
0:00:09.8]} 46. a5 {[%clk 0:00:28.5]} 46... Kxf4 {[%clk 0:00:09.4]} 47. a6
{[%clk 0:00:28.6]} 47... Ke3 {[%clk 0:00:10.2]} 48. a7 {[%clk 0:00:28.7]} 48...
Kf2 {[%clk 0:00:10.8]} 49. a8=Q {[%clk 0:00:26.6]} 49... Ke1 {[%clk 0:00:11.7]}
50. Qe4+ {[%clk 0:00:25.8]} 50... Kd2 {[%clk 0:00:12.6]} 51. Qd3+ {[%clk
0:00:25.1]} 51... Kc1 {[%clk 0:00:13.5]} 52. Ne4 {[%clk 0:00:18.8]} 52... Kb1
{[%clk 0:00:14.4]} 53. Nc3+ {[%clk 0:00:18.7]} 53... Ka1 {[%clk 0:00:13.5]} 54.
Ra6+ {[%clk 0:00:17.5]} 54... Kxb2 {[%clk 0:00:13.3]} 55. Ra2+ {[%clk
0:00:16.9]} 55... Kc1 {[%clk 0:00:13.5]} 56. Qd1# {[%clk 0:00:16.5]} 1-0